[Event "USA Junior-ch 2022"]
[Site "Saint Louis"]
[Date "2022.07.11"]
[Round "5.1"]
[White "Jacobson, Brandon"]
[Black "Liang, Awonder"]
[Result "0-1"]
[ECO "E11"]
[WhiteElo "2544"]
[BlackElo "2625"]
[Annotator "ChessBase"]
[PlyCount "60"]
[EventDate "2022.07.07"]
[EventType "tourn"]
[EventCountry "USA"]
[SourceTitle "playchess.com"]
[Source "ChessBase"]
[SourceQuality "1"]
[TimeControl "40/5400+30:1800+30"]

1. d4 {[%emt 0:00:03]} Nf6 {[%emt 0:00:04]} 2. c4 {[%emt 0:00:05]} e6 {[%emt 0:00:05]} 3. Nf3 {[%emt 0:00:12]} d5 {[%emt 0:00:01]} 4. g3 {[%emt 0:00:10]} Bb4+ {[%emt 0:00:07]} 5. Bd2 {[%emt 0:00:08]} Be7 {[%emt 0:00:06]} 6. Bg2 {[%emt 0:00:08]} O-O {[%emt 0:00:07]} 7. O-O {[%emt 0:00:07]} Nbd7 {[%emt 0:00:06]} 8. Qc2 {[%emt 0:00:09]} c6 {[%emt 0:00:16]} 9. Bf4 {[%emt 0:00:11]} b6 {[%emt 0:01:01]} 10. Nbd2 {[%emt 0:00:13]} Nh5 {[%emt 0:05:35]} 11. e3 {[%emt 0:00:31]} Bb7 {[%emt 0:01:42]} 12. cxd5 {[%emt 0:00:17]} exd5 {[%emt 0:07:26]} 13. h4 {[%emt 0:00:19]} Nxf4 {[%emt 0:03:12]} 14. exf4 {[%emt 0:00:21]} c5 {[%emt 0:01:41]} 15. Rad1 {[%emt 0:10:14]} Rc8 {[%emt 0:06:13]} 16. Rfe1 {[%emt 0:24:40]} Nf6 {[%emt 0:07:54]} 17. Nb1 {[%emt 0:06:59]} cxd4 {[%emt 0:11:30]} 18. Qd3 {[%emt 0:06:15]} Ne4 {[%emt 0:01:01]} 19. Nxd4 {[%emt 0:00:18]} Bf6 {[%emt 0:01:10]} 20. Nb5 {[%emt 0:09:46]} Qe7 {[%emt 0:06:06]} 21. N1c3 {[%emt 0:06:10]} Qc5 {[%emt 0:04:00]} 22. Bxe4 {[%emt 0:00:57]} dxe4 {[%emt 0:00:04]} 23. Nxe4 {[%emt 0:00:08]} Bxe4 {[%emt 0:00:05]} 24. Rxe4 {[%emt 0:00:07]} Rcd8 {[%emt 0:02:33]} 25. Nd6 {[%emt 0:18:34]} Rd7 {[%emt 0:04:43]} 26. b4 {[%emt 0:01:48]} Qc7 {[%emt 0:19:28]} 27. Rc4 {[%emt 0:02:49]} Qb8 {[%emt 0:00:02]} 28. Rc6 {[%emt 0:02:08]} Rfd8 {[%emt 0:03:08]} 29. Qf5 {[%emt 0:01:04]} Be7 {[%emt 0:00:02]} 30. Rc8 {[%emt 0:00:47]} Rxd6 {[%emt 0:00:16]} 0-1

[Event "USA Junior-ch 2022"]
[Site "Saint Louis"]
[Date "2022.07.12"]
[Round "5.2"]
[White "Mishra, Abhimanyu"]
[Black "Hong, Andrew"]
[Result "1/2-1/2"]
[ECO "C54"]
[WhiteElo "2553"]
[BlackElo "2504"]
[Annotator "ChessBase"]
[PlyCount "213"]
[EventDate "2022.07.07"]
[EventType "tourn"]
[EventCountry "USA"]
[SourceTitle "playchess.com"]
[Source "ChessBase"]
[SourceQuality "1"]
[TimeControl "40/5400+30:1800+30"]

1. e4 {[%emt 0:00:02]} e5 {[%emt 0:00:06]} 2. Nf3 {[%emt 0:00:06]} Nc6 {[%emt 0:00:05]} 3. Bc4 {[%emt 0:00:12]} Bc5 {[%emt 0:00:06]} 4. c3 {[%emt 0:00:13]} Nf6 {[%emt 0:00:03]} 5. d3 {[%emt 0:00:13]} d6 {[%emt 0:00:05]} 6. O-O {[%emt 0:00:27]} h6 {[%emt 0:00:11]} 7. Re1 {[%emt 0:01:15]} O-O {[%emt 0:00:11]} 8. Nbd2 {[%emt 0:00:58]} a5 {[%emt 0:00:20]} 9. Nf1 {[%emt 0:01:14]} a4 {[%emt 0:00:12]} 10. Bb5 {[%emt 0:01:25]} a3 {[%emt 0:00:23]} 11. b4 {[%emt 0:00:18]} Bb6 {[%emt 0:00:28]} 12. Be3 {[%emt 0:01:01]} Bxe3 {[%emt 0:03:34]} 13. Nxe3 {[%emt 0:00:14]} Ne7 {[%emt 0:08:57]} 14. Ba4 {[%emt 0:00:37]} Ng6 {[%emt 0:01:07]} 15. Bb3 {[%emt 0:00:12]} Re8 {[%emt 0:03:12]} 16. Qc2 {[%emt 0:00:16]} c6 {[%emt 0:10:45]} 17. Rad1 {[%emt 0:08:29]} d5 {[%emt 0:04:30]} 18. exd5 {[%emt 0:08:03]} cxd5 {[%emt 0:12:42]} 19. d4 {[%emt 0:01:13]} e4 {[%emt 0:01:46]} 20. Ne5 {[%emt 0:01:56]} Nxe5 {[%emt 0:10:10]} 21. dxe5 {[%emt 0:00:38]} Rxe5 {[%emt 0:00:03]} 22. Bxd5 {[%emt 0:06:32]} Qc7 {[%emt 0:01:13]} 23. Qb3 {[%emt 0:15:06]} Kf8 {[%emt 0:07:14]} 24. Rd4 {[%emt 0:06:08]} Bd7 {[%emt 0:09:07]} 25. Red1 {[%emt 0:12:40]} Ree8 {[%emt 0:07:12]} 26. b5 {[%emt 0:08:25]} Nxd5 {[%emt 0:06:08]} 27. Nxd5 {[%emt 0:00:39]} Qa5 {[%emt 0:00:55]} 28. c4 {[%emt 0:06:48]} Be6 {[%emt 0:02:22]} 29. h3 {[%emt 0:08:06]} Bf5 {[%emt 0:05:38]} 30. Qg3 {[%emt 0:05:03]} Rad8 {[%emt 0:01:45]} 31. Qf4 {[%emt 0:02:30]} Bg6 {[%emt 0:00:51]} 32. Kh2 {[%emt 0:01:30]} Rd7 {[%emt 0:00:40]} 33. c5 {[%emt 0:03:23]} Red8 {[%emt 0:02:13]} 34. c6 {[%emt 0:00:37]} bxc6 {[%emt 0:00:30]} 35. bxc6 {[%emt 0:00:16]} Rxd5 {[%emt 0:00:08]} 36. Rxd5 {[%emt 0:00:27]} Rxd5 {[%emt 0:00:02]} 37. Qb8+ {[%emt 0:01:01]} Ke7 {[%emt 0:00:01]} 38. Qb7+ {[%emt 0:00:39]} Kf6 {[%emt 0:02:47]} 39. c7 {[%emt 0:00:12]} Rxd1 {[%emt 0:01:13]} 40. Qc6+ {[%emt 0:00:45]} Kg5 {[%emt 0:00:29]} 41. c8=Q {[%emt 0:03:24]} Qe5+ {[%emt 0:08:18]} 42. g3 {[%emt 0:00:20]} Bf5 {[%emt 0:02:06]} 43. Qc5 {[%emt 0:20:56]} Qxc5 {[%emt 0:03:32]} 44. Qxc5 {[%emt 0:00:11]} Kg6 {[%emt 0:01:06]} 45. Qxa3 {[%emt 0:01:24]} Rd2 {[%emt 0:02:19]} 46. Qa7 {[%emt 0:02:24]} e3 {[%emt 0:02:42]} 47. Qxe3 {[%emt 0:00:28]} Rxa2 {[%emt 0:00:02]} 48. g4 {[%emt 0:00:52]} Be6 {[%emt 0:01:09]} 49. Qe4+ {[%emt 0:00:55]} Kf6 {[%emt 0:00:16]} 50. Kg3 {[%emt 0:00:29]} Ra3+ {[%emt 0:06:30]} 51. f3 {[%emt 0:01:36]} Rb3 {[%emt 0:00:41]} 52. h4 {[%emt 0:01:11]} Ke7 {[%emt 0:03:08]} 53. Kf2 {[%emt 0:00:53]} Rb2+ {[%emt 0:02:14]} 54. Ke1 {[%emt 0:00:45]} Rb5 {[%emt 0:00:55]} 55. f4 {[%emt 0:01:18]} g6 {[%emt 0:02:10]} 56. h5 {[%emt 0:00:44]} gxh5 {[%emt 0:00:51]} 57. f5 {[%emt 0:00:31]} Rb6 {[%emt 0:00:56]} 58. f6+ {[%emt 0:00:47]} Kd7 {[%emt 0:00:24]} 59. Qd3+ {[%emt 0:00:24]} Kc6 {[%emt 0:00:40]} 60. Qc2+ {[%emt 0:00:33]} Kb7 {[%emt 0:00:32]} 61. Qe4+ {[%emt 0:00:25]} Ka6 {[%emt 0:00:25]} 62. Qa4+ {[%emt 0:00:30]} Kb7 {[%emt 0:00:01]} 63. Qe4+ {[%emt 0:00:17]} Ka6 {[%emt 0:01:39]} 64. Qa8+ {[%emt 0:00:17]} Kb5 {[%emt 0:00:00]} 65. gxh5 {[%emt 0:00:09]} Rd6 {[%emt 0:00:04]} 66. Qb8+ {[%emt 0:01:01]} Kc6 {[%emt 0:00:07]} 67. Qe8+ {[%emt 0:00:48]} Kb7 {[%emt 0:00:29]} 68. Qe7+ {[%emt 0:00:24]} Kc6 {[%emt 0:00:08]} 69. Qe8+ {[%emt 0:00:01]} Kb7 {[%emt 0:00:00]} 70. Qb5+ {[%emt 0:00:50]} Kc7 {[%emt 0:00:42]} 71. Qc5+ {[%emt 0:00:36]} Kd7 {[%emt 0:00:01]} 72. Qa7+ {[%emt 0:00:36]} Kc6 {[%emt 0:00:15]} 73. Qa4+ {[%emt 0:00:33]} Kb7 {[%emt 0:00:30]} 74. Qb4+ {[%emt 0:00:12]} Kc6 {[%emt 0:00:35]} 75. Qc3+ {[%emt 0:00:21]} Kd7 {[%emt 0:00:33]} 76. Qe3 {[%emt 0:00:26]} Rd5 {[%emt 0:00:25]} 77. Qxh6 {[%emt 0:00:31]} Bg4 {[%emt 0:00:01]} 78. Qe3 {[%emt 0:00:39]} Bxh5 {[%emt 0:00:16]} 79. Qe7+ {[%emt 0:00:09]} Kc6 {[%emt 0:00:19]} 80. Kf2 {[%emt 0:00:22]} Bg6 {[%emt 0:00:25]} 81. Ke3 {[%emt 0:00:32]} Rd3+ {[%emt 0:00:41]} 82. Kf4 {[%emt 0:00:13]} Rd5 {[%emt 0:00:04]} 83. Qa7 {[%emt 0:00:32]} Rf5+ {[%emt 0:00:30]} 84. Kg4 {[%emt 0:00:19]} Rd5 {[%emt 0:00:59]} 85. Qa6+ {[%emt 0:00:35]} Kc7 {[%emt 0:00:53]} 86. Qa7+ {[%emt 0:00:13]} Kc6 {[%emt 0:00:02]} 87. Qb8 {[%emt 0:00:12]} Rc5 {[%emt 0:00:57]} 88. Qc8+ {[%emt 0:00:20]} Kd6 {[%emt 0:00:14]} 89. Qd8+ {[%emt 0:00:07]} Kc6 {[%emt 0:00:05]} 90. Kf4 {[%emt 0:00:19]} Rf5+ {[%emt 0:00:34]} 91. Ke3 {[%emt 0:00:16]} Rd5 {[%emt 0:00:07]} 92. Qe7 {[%emt 0:00:53]} Rd3+ {[%emt 0:00:19]} 93. Kf4 {[%emt 0:00:08]} Rd5 {[%emt 0:00:07]} 94. Qe8+ {[%emt 0:00:25]} Kc7 {[%emt 0:00:34]} 95. Ke3 {[%emt 0:00:50]} Rd3+ {[%emt 0:00:10]} 96. Ke2 {[%emt 0:00:14]} Rd5 {[%emt 0:00:08]} 97. Qa8 {[%emt 0:00:15]} Kd6 {[%emt 0:00:43]} 98. Qa7 {[%emt 0:01:08]} Kc6 {[%emt 0:01:11]} 99. Kf2 {[%emt 0:00:14]} Rf5+ {[%emt 0:00:10]} 100. Kg3 {[%emt 0:00:09]} Rg5+ {[%emt 0:00:11]} 101. Kf4 {[%emt 0:00:09]} Rf5+ {[%emt 0:00:05]} 102. Kg4 {[%emt 0:00:06]} Rd5 {[%emt 0:00:05]} 103. Qa8+ {[%emt 0:00:07]} Kd6 {[%emt 0:00:10]} 104. Qd8+ {[%emt 0:00:04]} Kc6 {[%emt 0:00:07]} 105. Qa8+ {[%emt 0:00:08]} Kd6 {[%emt 0:00:04]} 106. Qd8+ {[%emt 0:00:07]} Kc6 {[%emt 0:00:08]} 107. Qa8+ {[%emt 0:00:05]} 1/2-1/2

[Event "USA Junior-ch 2022"]
[Site "Saint Louis"]
[Date "2022.07.11"]
[Round "5.3"]
[White "Yoo, Christopher Woojin"]
[Black "Daggupati, Balaji"]
[Result "1-0"]
[ECO "A09"]
[WhiteElo "2550"]
[BlackElo "2488"]
[Annotator "ChessBase"]
[PlyCount "81"]
[EventDate "2022.07.07"]
[EventType "tourn"]
[EventCountry "USA"]
[SourceTitle "playchess.com"]
[Source "ChessBase"]
[SourceQuality "1"]
[TimeControl "40/5400+30:1800+30"]

1. Nf3 {[%emt 0:00:10]} d5 {[%emt 0:00:12]} 2. c4 {[%emt 0:00:05]} d4 {[%emt 0:00:32]} 3. b4 {[%emt 0:00:17]} c5 {[%emt 0:00:19]} 4. e3 {[%emt 0:00:08]} dxe3 {[%emt 0:00:37]} 5. fxe3 {[%emt 0:00:06]} cxb4 {[%emt 0:00:06]} 6. a3 {[%emt 0:00:05]} e5 {[%emt 0:16:15]} 7. Nxe5 {[%emt 0:07:15]} Bd6 {[%emt 0:05:12]} 8. Bb2 {[%emt 0:06:17]} Nf6 {[%emt 0:08:05]} 9. axb4 {[%emt 0:09:54]} O-O {[%emt 0:03:21]} 10. Be2 {[%emt 0:06:54]} Re8 {[%emt 0:09:59]} 11. Nf3 {[%emt 0:08:05]} Bxb4 {[%emt 0:01:44]} 12. O-O {[%emt 0:03:47]} Nc6 {[%emt 0:02:10]} 13. Nc3 {[%emt 0:03:32]} Bg4 {[%emt 0:04:18]} 14. Qb3 {[%emt 0:04:44]} Bf8 {[%emt 0:21:29]} 15. h3 {[%emt 0:10:40]} Bxf3 {[%emt 0:01:26]} 16. Bxf3 {[%emt 0:00:54]} Qxd2 {[%emt 0:04:46]} 17. Nd5 {[%emt 0:01:42]} Nxd5 {[%emt 0:02:59]} 18. Bxd5 {[%emt 0:00:10]} Nd8 {[%emt 0:00:37]} 19. Bd4 {[%emt 0:03:16]} Qb4 {[%emt 0:01:36]} 20. Qc2 {[%emt 0:03:42]} Qd6 {[%emt 0:00:41]} 21. Rf3 {[%emt 0:04:56]} Qg6 {[%emt 0:02:02]} 22. Qf2 {[%emt 0:01:20]} Bd6 {[%emt 0:00:16]} 23. Rf1 {[%emt 0:02:15]} Rf8 {[%emt 0:01:13]} 24. c5 {[%emt 0:00:21]} Be7 {[%emt 0:02:45]} 25. Rf4 {[%emt 0:09:07]} Bg5 {[%emt 0:02:41]} 26. Rg4 {[%emt 0:00:30]} h5 {[%emt 0:00:21]} 27. Rg3 {[%emt 0:01:25]} Kh7 {[%emt 0:00:03]} 28. Qf3 {[%emt 0:01:31]} h4 {[%emt 0:01:34]} 29. Be4 {[%emt 0:00:30]} f5 {[%emt 0:00:09]} 30. Rg4 {[%emt 0:00:17]} Qh6 {[%emt 0:01:07]} 31. Bxf5+ {[%emt 0:01:12]} Kh8 {[%emt 0:00:05]} 32. Qe4 {[%emt 0:02:19]} Nc6 {[%emt 0:00:36]} 33. Rxg5 {[%emt 0:01:26]} Nxd4 {[%emt 0:05:13]} 34. Rg6 {[%emt 0:00:12]} Ne2+ {[%emt 0:00:04]} 35. Kh2 {[%emt 0:00:03]} Qh5 {[%emt 0:01:33]} 36. Qe7 {[%emt 0:01:20]} Rg8 {[%emt 0:00:01]} 37. Rg5 {[%emt 0:00:46]} Qh6 {[%emt 0:00:15]} 38. Bg6 {[%emt 0:00:18]} Ng3 {[%emt 0:01:04]} 39. Rf4 {[%emt 0:01:25]} Rad8 {[%emt 0:01:42]} 40. Rgg4 {[%emt 0:00:27]} Rd5 {[%emt 0:00:42]} 41. Rf8 {[%emt 0:31:37]} 1-0

[Event "USA Junior-ch 2022"]
[Site "Saint Louis"]
[Date "2022.07.11"]
[Round "5.4"]
[White "Yip, Carissa"]
[Black "Espinosa, Pedro"]
[Result "0-1"]
[ECO "A00"]
[WhiteElo "2416"]
[BlackElo "2130"]
[Annotator "ChessBase"]
[PlyCount "120"]
[EventDate "2022.07.07"]
[EventType "tourn"]
[EventCountry "USA"]
[SourceTitle "playchess.com"]
[Source "ChessBase"]
[SourceQuality "1"]
[TimeControl "40/5400+30:1800+30"]

1. g3 {[%emt 0:00:02]} d5 {[%emt 0:00:43]} 2. Bg2 {[%emt 0:00:06]} e5 {[%emt 0:02:45]} 3. d3 {[%emt 0:00:13]} Nf6 {[%emt 0:01:03]} 4. Nd2 {[%emt 0:01:32]} Bc5 {[%emt 0:01:52]} 5. e3 {[%emt 0:01:53]} Bf5 {[%emt 0:05:04]} 6. h3 {[%emt 0:02:59]} O-O {[%emt 0:02:57]} 7. a3 {[%emt 0:02:47]} Nc6 {[%emt 0:09:23]} 8. Ne2 {[%emt 0:00:45]} Qd7 {[%emt 0:02:04]} 9. b3 {[%emt 0:00:36]} h5 {[%emt 0:05:52]} 10. Bb2 {[%emt 0:04:10]} a5 {[%emt 0:01:37]} 11. Nf3 {[%emt 0:09:22]} Rfe8 {[%emt 0:06:38]} 12. Nh4 {[%emt 0:06:07]} Bh7 {[%emt 0:01:44]} 13. O-O {[%emt 0:04:14]} Rad8 {[%emt 0:04:35]} 14. Nf3 {[%emt 0:05:09]} Qe7 {[%emt 0:04:57]} 15. d4 {[%emt 0:06:57]} exd4 {[%emt 0:02:26]} 16. Nexd4 {[%emt 0:00:05]} Nxd4 {[%emt 0:01:04]} 17. exd4 {[%emt 0:00:07]} Bd6 {[%emt 0:01:52]} 18. Re1 {[%emt 0:10:18]} Ne4 {[%emt 0:03:19]} 19. c4 {[%emt 0:00:06]} c6 {[%emt 0:02:40]} 20. h4 {[%emt 0:03:47]} Qf6 {[%emt 0:01:45]} 21. Qe2 {[%emt 0:00:36]} Bf5 {[%emt 0:04:32]} 22. Ne5 {[%emt 0:02:03]} g6 {[%emt 0:03:18]} 23. cxd5 {[%emt 0:06:38]} cxd5 {[%emt 0:00:24]} 24. Rf1 {[%emt 0:00:11]} Bxe5 {[%emt 0:02:59]} 25. dxe5 {[%emt 0:00:05]} Qb6 {[%emt 0:00:16]} 26. Kh2 {[%emt 0:07:32]} Qxb3 {[%emt 0:01:28]} 27. Bd4 {[%emt 0:00:52]} Rc8 {[%emt 0:02:36]} 28. Qe1 {[%emt 0:03:26]} Qa4 {[%emt 0:02:47]} 29. Qe3 {[%emt 0:01:11]} Nf6 {[%emt 0:04:04]} 30. f3 {[%emt 0:00:57]} Nd7 {[%emt 0:01:07]} 31. Rad1 {[%emt 0:02:33]} Rc2 {[%emt 0:02:32]} 32. Ba1 {[%emt 0:01:47]} Be6 {[%emt 0:01:43]} 33. Rfe1 {[%emt 0:01:37]} Ra2 {[%emt 0:01:10]} 34. Rc1 {[%emt 0:02:55]} Qxa3 {[%emt 0:01:19]} 35. Bc3 {[%emt 0:00:32]} b5 {[%emt 0:01:25]} 36. Qf4 {[%emt 0:04:18]} Qa4 {[%emt 0:03:48]} 37. Bd4 {[%emt 0:00:17]} b4 {[%emt 0:00:56]} 38. g4 {[%emt 0:00:58]} hxg4 {[%emt 0:01:09]} 39. fxg4 {[%emt 0:00:07]} Rc2 {[%emt 0:03:28]} 40. h5 {[%emt 0:03:38]} Rxc1 {[%emt 0:02:09]} 41. Rxc1 {[%emt 0:30:15]} Nf8 {[%emt 0:32:32]} 42. Qf6 {[%emt 0:03:05]} Nh7 {[%emt 0:00:00]} 43. Qf2 {[%emt 0:00:00]} Qd7 {[%emt 0:00:00]} 44. Qd2 {[%emt 0:00:00]} Rb8 {[%emt 0:00:00]} 45. Qh6 {[%emt 0:00:00]} Nf8 {[%emt 0:00:00]} 46. Bc5 {[%emt 0:00:00]} Qe8 {[%emt 0:00:00]} 47. Bd6 {[%emt 0:00:00]} Rc8 {[%emt 0:00:00]} 48. Rh1 {[%emt 0:00:00]} Nh7 {[%emt 0:00:00]} 49. Rf1 {[%emt 0:00:00]} g5 {[%emt 0:00:00]} 50. Rf5 {[%emt 0:00:00]} Qd8 {[%emt 0:00:00]} 51. Rf2 {[%emt 0:00:00]} b3 {[%emt 0:00:00]} 52. Ba3 {[%emt 0:00:00]} Rc2 {[%emt 0:00:00]} 53. Rf6 {[%emt 0:01:16]} Qe8 {[%emt 0:01:23]} 54. Rf1 {[%emt 0:01:09]} b2 {[%emt 0:01:10]} 55. Rg1 {[%emt 0:01:00]} Qb5 {[%emt 0:01:11]} 56. Be7 {[%emt 0:00:14]} b1=Q {[%emt 0:03:45]} 57. Rxb1 {[%emt 0:00:09]} Qxb1 {[%emt 0:00:20]} 58. Bf6 {[%emt 0:00:05]} Nxf6 {[%emt 0:00:32]} 59. Qxg5+ {[%emt 0:00:14]} Kf8 {[%emt 0:00:25]} 60. Qxf6 {[%emt 0:00:18]} Ke8 {[%emt 0:00:47]} 0-1

[Event "USA Junior-ch 2022"]
[Site "Saint Louis"]
[Date "2022.07.11"]
[Round "5.5"]
[White "Wang, Justin"]
[Black "Brodsky, David"]
[Result "1/2-1/2"]
[ECO "D43"]
[WhiteElo "2469"]
[BlackElo "2496"]
[Annotator "ChessBase"]
[PlyCount "84"]
[EventDate "2022.07.07"]
[EventType "tourn"]
[EventCountry "USA"]
[SourceTitle "playchess.com"]
[Source "ChessBase"]
[SourceQuality "1"]
[TimeControl "40/5400+30:1800+30"]

1. d4 {[%emt 0:00:11]} Nf6 {[%emt 0:00:02]} 2. c4 {[%emt 0:00:04]} e6 {[%emt 0:00:03]} 3. Nf3 {[%emt 0:00:06]} d5 {[%emt 0:00:04]} 4. Nc3 {[%emt 0:01:08]} c6 {[%emt 0:00:03]} 5. Bg5 {[%emt 0:02:02]} h6 {[%emt 0:00:05]} 6. Bxf6 {[%emt 0:00:16]} Qxf6 {[%emt 0:00:06]} 7. e3 {[%emt 0:00:02]} Nd7 {[%emt 0:00:26]} 8. Bd3 {[%emt 0:00:18]} g6 {[%emt 0:00:52]} 9. O-O {[%emt 0:00:16]} Bg7 {[%emt 0:00:33]} 10. Qe2 {[%emt 0:02:39]} O-O {[%emt 0:03:28]} 11. Rac1 {[%emt 0:01:14]} Qe7 {[%emt 0:04:33]} 12. Nd2 {[%emt 0:07:51]} Rd8 {[%emt 0:03:42]} 13. Rfd1 {[%emt 0:04:16]} Nf6 {[%emt 0:22:57]} 14. Nf3 {[%emt 0:04:54]} Bd7 {[%emt 0:05:18]} 15. c5 {[%emt 0:09:34]} Be8 {[%emt 0:05:57]} 16. b4 {[%emt 0:00:09]} b6 {[%emt 0:02:12]} 17. Ne5 {[%emt 0:00:36]} bxc5 {[%emt 0:01:44]} 18. bxc5 {[%emt 0:00:04]} Rab8 {[%emt 0:03:46]} 19. Qc2 {[%emt 0:01:09]} Qc7 {[%emt 0:01:29]} 20. f4 {[%emt 0:01:46]} Nd7 {[%emt 0:03:40]} 21. Nf3 {[%emt 0:00:25]} Qa5 {[%emt 0:03:48]} 22. Nb1 {[%emt 0:01:33]} Rb4 {[%emt 0:11:27]} 23. Nbd2 {[%emt 0:01:20]} Rdb8 {[%emt 0:00:26]} 24. Rb1 {[%emt 0:01:10]} Nf6 {[%emt 0:06:01]} 25. Rxb4 {[%emt 0:01:52]} Rxb4 {[%emt 0:00:10]} 26. h3 {[%emt 0:02:19]} Qa4 {[%emt 0:03:21]} 27. Rb1 {[%emt 0:04:19]} Qxc2 {[%emt 0:01:58]} 28. Bxc2 {[%emt 0:00:03]} Rxb1+ {[%emt 0:00:08]} 29. Nxb1 {[%emt 0:02:25]} Nd7 {[%emt 0:01:32]} 30. Nbd2 {[%emt 0:06:10]} Kf8 {[%emt 0:02:15]} 31. g4 {[%emt 0:04:59]} Ke7 {[%emt 0:01:30]} 32. h4 {[%emt 0:00:15]} Kd8 {[%emt 0:04:53]} 33. Kf2 {[%emt 0:04:34]} Kc7 {[%emt 0:04:59]} 34. Bd3 {[%emt 0:00:30]} Nf6 {[%emt 0:01:14]} 35. Ne5 {[%emt 0:03:15]} Nd7 {[%emt 0:00:19]} 36. Ndf3 {[%emt 0:01:06]} f5 {[%emt 0:02:31]} 37. Nxd7 {[%emt 0:02:44]} Bxd7 {[%emt 0:00:23]} 38. Kg3 {[%emt 0:03:53]} Kd8 {[%emt 0:00:46]} 39. Ne5 {[%emt 0:01:53]} Bxe5 {[%emt 0:00:28]} 40. dxe5 {[%emt 0:06:03]} h5 {[%emt 0:00:06]} 41. gxh5 {[%emt 0:32:45]} gxh5 {[%emt 0:30:06]} 42. Kf2 {[%emt 0:00:07]} Kc7 {[%emt 0:00:18]} 1/2-1/2

[Event "USA Junior-ch 2022"]
[Site "Saint Louis"]
[Date "2022.07.13"]
[Round "6.1"]
[White "Wang, Justin"]
[Black "Yoo, Christopher Woojin"]
[Result "0-1"]
[ECO "A09"]
[WhiteElo "2469"]
[BlackElo "2550"]
[Annotator "ChessBase"]
[PlyCount "124"]
[EventDate "2022.07.07"]
[EventType "tourn"]
[EventCountry "USA"]
[SourceTitle "playchess.com"]
[Source "ChessBase"]
[SourceQuality "1"]
[TimeControl "40/5400+30:1800+30"]

1. Nf3 {[%emt 0:00:23]} d5 {[%emt 0:00:08]} 2. c4 {[%emt 0:00:27]} d4 {[%emt 0:00:07]} 3. b4 {[%emt 0:01:34]} c5 {[%emt 0:00:13]} 4. d3 {[%emt 0:02:35]} cxb4 {[%emt 0:08:35]} 5. a3 {[%emt 0:00:38]} bxa3 {[%emt 0:02:30]} 6. Bxa3 {[%emt 0:02:39]} Nf6 {[%emt 0:03:49]} 7. g3 {[%emt 0:04:08]} g6 {[%emt 0:01:02]} 8. Bg2 {[%emt 0:02:21]} Bg7 {[%emt 0:01:13]} 9. O-O {[%emt 0:00:07]} O-O {[%emt 0:00:18]} 10. Nbd2 {[%emt 0:00:42]} Nc6 {[%emt 0:01:05]} 11. Nb3 {[%emt 0:00:41]} Re8 {[%emt 0:03:35]} 12. Nfd2 {[%emt 0:10:44]} Qc7 {[%emt 0:02:11]} 13. Qc2 {[%emt 0:00:28]} Nd7 {[%emt 0:13:08]} 14. Rfb1 {[%emt 0:27:20]} b6 {[%emt 0:04:31]} 15. c5 {[%emt 0:01:43]} Bb7 {[%emt 0:00:31]} 16. cxb6 {[%emt 0:01:29]} axb6 {[%emt 0:00:09]} 17. Rc1 {[%emt 0:00:13]} Rec8 {[%emt 0:03:31]} 18. Bxe7 {[%emt 0:05:49]} Rxa1 {[%emt 0:03:12]} 19. Nxa1 {[%emt 0:00:16]} Qe5 {[%emt 0:00:51]} 20. Ba3 {[%emt 0:00:15]} Qxe2 {[%emt 0:02:29]} 21. Nc4 {[%emt 0:09:09]} Qxc2 {[%emt 0:01:49]} 22. Nxc2 {[%emt 0:00:06]} Ba8 {[%emt 0:08:41]} 23. Nd6 {[%emt 0:04:04]} Rd8 {[%emt 0:02:59]} 24. Bxc6 {[%emt 0:11:46]} Bxc6 {[%emt 0:00:04]} 25. Nxd4 {[%emt 0:00:01]} Bxd4 {[%emt 0:00:13]} 26. Rxc6 {[%emt 0:00:04]} Ne5 {[%emt 0:01:08]} 27. Rc7 {[%emt 0:00:01]} Ra8 {[%emt 0:00:42]} 28. Nb5 {[%emt 0:00:06]} Nxd3 {[%emt 0:00:38]} 29. Nxd4 {[%emt 0:02:03]} Rxa3 {[%emt 0:00:05]} 30. f4 {[%emt 0:04:07]} Ra1+ {[%emt 0:01:46]} 31. Kg2 {[%emt 0:00:06]} Ra2+ {[%emt 0:00:36]} 32. Kg1 {[%emt 0:00:44]} Ra4 {[%emt 0:04:34]} 33. Nc6 {[%emt 0:01:31]} Ra1+ {[%emt 0:01:33]} 34. Kg2 {[%emt 0:00:01]} Rc1 {[%emt 0:02:54]} 35. Ne7+ {[%emt 0:01:18]} Kg7 {[%emt 0:03:42]} 36. Rb7 {[%emt 0:00:36]} Rc2+ {[%emt 0:01:45]} 37. Kg1 {[%emt 0:00:04]} Ne1 {[%emt 0:03:53]} 38. h4 {[%emt 0:00:10]} Nf3+ {[%emt 0:01:06]} 39. Kf1 {[%emt 0:00:04]} Nd2+ {[%emt 0:02:56]} 40. Ke2 {[%emt 0:06:30]} Ne4+ {[%emt 0:01:19]} 41. Kd3 {[%emt 0:05:55]} Nc5+ {[%emt 0:00:27]} 42. Kxc2 {[%emt 0:00:02]} Nxb7 {[%emt 0:00:04]} 43. g4 {[%emt 0:01:48]} Nd6 {[%emt 0:02:27]} 44. Kd3 {[%emt 0:04:46]} b5 {[%emt 0:02:03]} 45. Kd4 {[%emt 0:00:44]} h5 {[%emt 0:01:30]} 46. g5 {[%emt 0:01:45]} Kf8 {[%emt 0:00:50]} 47. Nd5 {[%emt 0:00:27]} Nf5+ {[%emt 0:00:04]} 48. Kc5 {[%emt 0:00:07]} Nxh4 {[%emt 0:00:06]} 49. Ne3 {[%emt 0:00:54]} Nf3 {[%emt 0:00:45]} 50. Kxb5 {[%emt 0:00:29]} h4 {[%emt 0:02:43]} 51. Kc4 {[%emt 0:00:44]} h3 {[%emt 0:00:15]} 52. Ng4 {[%emt 0:00:04]} h2 {[%emt 0:00:08]} 53. Nf2 {[%emt 0:00:04]} Ng1 {[%emt 0:00:17]} 54. Kd4 {[%emt 0:02:40]} Nh3 {[%emt 0:00:16]} 55. Nh1 {[%emt 0:00:06]} Nxf4 {[%emt 0:00:03]} 56. Ke4 {[%emt 0:00:42]} Ne6 {[%emt 0:00:11]} 57. Kf3 {[%emt 0:00:05]} Nxg5+ {[%emt 0:00:03]} 58. Kg2 {[%emt 0:00:03]} Ne4 {[%emt 0:00:08]} 59. Kxh2 {[%emt 0:01:06]} f5 {[%emt 0:00:05]} 60. Ng3 {[%emt 0:01:18]} Nxg3 {[%emt 0:00:07]} 61. Kxg3 {[%emt 0:00:04]} Kf7 {[%emt 0:00:12]} 62. Kf4 {[%emt 0:00:03]} Kf6 {[%emt 0:00:04]} 0-1